fUST/lending_fUST_20250822
["ID","MTS","AMOUNT","RATE_DAILY","PERIOD"]
[380516966,1755798676264,-1078.29,0.00023248,3]
[380516967,1755798676274,-2351.0,0.00023252,2]
[380516968,1755798676283,-500.0,0.00023255,2]
[380516969,1755798676294,-1033.16,0.00023257,3]
[380516970,1755798676305,-1678.05,0.00023257,3]
[380516971,1755798676314,-957.28,0.00023257,3]
[380516972,1755798676324,-647.49,0.00023257,3]
[380516973,1755798676333,-480.0,0.00023257,3]
[380516974,1755798676342,-1358.40476828,0.00023257,3]
[380516975,1755798676355,-61.86523172,0.00023257,3]
[380516976,1755798676365,-614.7,0.00023257,3]
[380516977,1755798676374,-1110.22617508,0.00023257,3]
[380516978,1755798676385,-568.41382492,0.00023257,3]
[380516979,1755798676394,-517.14,0.00023257,3]
[380516980,1755798676403,-767.97,0.00023257,3]
[380516981,1755798676413,-1078.68,0.00023257,3]
[380516982,1755798676422,-1461.11,0.00023257,3]
[380516983,1755798676431,-480.0,0.00023257,3]
[380516984,1755798676441,-480.0,0.00023257,3]
[380516985,1755798676450,-836.24,0.00023257,3]
[380516986,1755798676459,-793.0,0.00023257,3]
[380516987,1755798676468,-1030.12,0.00023257,3]
[380516988,1755798676478,-480.0,0.00023257,3]
[380516989,1755798676487,-670.29,0.00023257,3]
[380516990,1755798676497,-499.33,0.00023258,3]
[380516991,1755798676506,-480.0,0.00023258,3]
[380516992,1755798676515,-1326.62,0.00023258,3]
[380516993,1755798676525,-480.0,0.00023258,3]
[380516994,1755798676534,-480.68617508,0.00023258,3]
[380516995,1755798676636,-1477.02550826,0.00023258,3]
[380516996,1755798676648,-1327.17831666,0.00023258,3]
[380516997,1755798676658,-2041.53,0.00023258,3]
[380516998,1755798676667,-480.0,0.00023258,3]
[380516999,1755798676677,-924.89,0.00023258,3]
[380517000,1755798676687,-8164.19262225,0.00023258,3]
[380517001,1755798676699,-1987.855937,0.00023258,3]
[380517002,1755798676710,-1000.93144075,0.00023258,3]
[380517003,1755798676720,-787.01001291,0.00023258,3]
[380517004,1755798676731,-8728.26998709,0.00023258,3]
[380517005,1755798676740,-1197.74,0.00023258,3]
[380517006,1755798676750,-2074.83,0.00023258,3]
[380517007,1755798676760,-500.0,0.00023287,2]
[380517008,1755798676769,-2336.59,0.00023287,3]
[380517009,1755798676779,-213.324249,0.00023288,2]
[380517010,1755798676788,-600.0,0.00023288,2]
[380517011,1755798676797,-559.0,0.00023313,2]
[380517012,1755798676808,-480.0,0.00023357,3]
[380517013,1755798676817,-480.0,0.00023357,3]
[380517014,1755798676826,-723.94,0.00023357,3]
[380517015,1755798676836,-480.0,0.00023357,3]
[380517016,1755798676845,-727.19,0.00023357,3]
[380517017,1755798676854,-480.0,0.00023357,3]
[380517018,1755798676863,-452.71348578,0.00023357,3]
[380517019,1755798676872,-1507.01,0.00023357,3]
[380517020,1755798676882,-492.61,0.00023357,3]
[380517021,1755798676891,-524.9,0.00023357,3]
[380517022,1755798676900,-1428.16,0.00023357,3]
[380517023,1755798676909,-872.4,0.00023357,3]
[380517024,1755798676919,-483.84,0.00023357,3]
[380517025,1755798676928,-480.0,0.00023357,3]
[380517026,1755798676937,-480.0,0.00023357,3]
[380517027,1755798676946,-480.0,0.00023357,3]
[380517028,1755798676955,-621.19,0.00023357,3]
[380517029,1755798676964,-618.6,0.00023357,3]
[380517030,1755798676973,-810.8,0.00023357,3]
[380517031,1755798676982,-3280.11,0.00023357,3]
[380517032,1755798676990,-589.21,0.00023357,3]
[380517033,1755798677000,-621.55,0.00023357,3]
[380517034,1755798677009,-1495.64,0.00023357,3]
[380517035,1755798677019,-695.63,0.00023357,3]
[380517036,1755798677029,-654.93,0.00023357,3]
[380517037,1755798677038,-865.47,0.00023357,3]
[380517038,1755798677050,-3867.5,0.00023357,3]
[380517039,1755798677062,-951.02,0.00023357,3]
[380517040,1755798677071,-520.82,0.00023357,3]
[380517041,1755798677081,-1837.57,0.00023357,3]
[380517042,1755798677091,-818.75,0.00023357,3]
[380517043,1755798677100,-480.0,0.00023357,3]
[380517044,1755798677109,-548.67,0.00023357,3]
[380517045,1755798677119,-1521.11,0.00023357,3]
[380517046,1755798677129,-1381.99,0.00023357,3]
[380517047,1755798677140,-866.39,0.00023357,3]
[380517048,1755798677149,-2767.93,0.00023357,3]
[380517049,1755798677159,-480.0,0.00023357,3]
[380517050,1755798677168,-153.0544585,0.00023357,3]
[380517051,1755798677178,-151.0,0.00023358,7]
[380517052,1755798677187,-556.05,0.00023358,3]
[380517053,1755798677197,-224.770708,0.00023358,7]
[380517054,1755798677206,-224.770708,0.00023358,7]
[380517055,1755798677216,-224.770708,0.00023358,7]
[380517056,1755798677225,-224.770708,0.00023358,7]
[380517057,1755798677234,-480.0,0.00023358,3]
[380517058,1755798677244,-151.0,0.00023358,7]
[380517059,1755798677253,-151.0,0.00023358,7]
[380517060,1755798677263,-480.0,0.00023358,3]
[380517061,1755798677272,-494.94,0.00023358,3]
[380517062,1755798677283,-480.0,0.00023358,2]
[380517063,1755798677294,-639.33,0.00023358,3]
[380517064,1755798677303,-480.0,0.00023358,3]
[380517065,1755798677314,-480.0,0.00023358,3]
[380517066,1755798677323,-1760.29,0.00023358,3]
[380517067,1755798677332,-480.0,0.00023358,3]
[380517068,1755798677342,-590.52,0.00023358,3]
[380517069,1755798677351,-480.0,0.00023359,3]
[380517070,1755798677361,-329.22185737,0.00023359,3]
[380517071,1755798677371,-635.25,0.00023359,3]
[380517072,1755798677381,-480.0,0.00023359,3]
[380517073,1755798677390,-799.42,0.00023359,3]
[380517074,1755798677400,-480.0,0.00023359,3]
[380517075,1755798677409,-480.0,0.00023359,3]
[380517076,1755798677418,-480.0,0.00023359,3]
[380517077,1755798677427,-480.0,0.00023359,3]
[380517078,1755798677437,-312.24835049,0.00023359,3]
[380517079,1755798677446,-645.85746645,0.00023426,2]
[380517080,1755798677455,-3000.0,0.00023426,2]
[380517081,1755798677464,-2240.00647699,0.00023426,2]
[380517082,1755798677474,-1621.28831716,0.00023426,2]
[380517083,1755798677484,-480.0,0.00023458,3]
[380517084,1755798677494,-480.0,0.00023458,3]
[380517085,1755798677504,-578.48,0.00023461,3]
[380517086,1755798677513,-160.0,0.000235,5]
[380517087,1755798677522,-480.0,0.0002352,3]
[380517088,1755798677531,-674.49,0.00023521,3]
[380517089,1755798677540,-862.49,0.00023521,3]
[380517090,1755798677549,-730.52,0.00023521,3]
[380517091,1755798677559,-2992.55,0.00023521,3]
[380517092,1755798677568,-609.58,0.00023522,3]
[380517093,1755798677577,-1761.08,0.00023522,3]
[380517094,1755798677586,-5081.96,0.00023522,3]
[380517095,1755798677596,-1099.74,0.00023522,3]
[380517096,1755798677605,-473.65282222,0.00023522,3]
[380517097,1755798677615,-754.87,0.00023522,3]
[380517098,1755798677623,-4586.59,0.00023522,3]
[380517099,1755798677635,-4179.87,0.00023522,3]
[380517100,1755798677645,-3124.04,0.00023522,3]
[380517101,1755798677654,-595.07,0.00023522,3]
[380517102,1755798677663,-2044.44,0.00023522,3]
[380517103,1755798677672,-889.73,0.00023522,3]
[380517104,1755798677681,-2890.7,0.00023522,3]
[380517105,1755798677690,-480.0,0.00023522,3]
[380517106,1755798677823,-876.44,0.00023522,3]
[380517107,1755798677833,-1169.46,0.00023522,3]
[380517108,1755798677842,-1078.29,0.00023522,3]
[380517109,1755798677851,-1033.16,0.00023531,3]
[380517110,1755798677860,-1678.05,0.00023531,3]
[380517111,1755798677870,-957.28,0.00023531,3]
[380517112,1755798677879,-647.49,0.00023531,3]
[380517113,1755798677888,-343.71075995,0.00023531,3]
[380517114,1755798677899,-1420.27,0.00023531,3]
[380517115,1755798677908,-614.7,0.00023531,3]
[380517116,1755798677918,-1678.64,0.00023531,3]
[380517117,1755798677927,-517.14,0.00023531,3]
[380517118,1755798677936,-767.97,0.00023531,3]
[380517119,1755798677946,-1078.68,0.00023531,3]
[380517120,1755798677956,-1461.11,0.00023531,3]
[380517121,1755798677965,-480.0,0.00023531,3]
[380517122,1755798677974,-480.0,0.00023531,3]
[380517123,1755798677983,-836.24,0.00023531,3]
[380517124,1755798677992,-793.0,0.00023531,3]
[380517125,1755798678002,-1030.12,0.00023531,3]
[380517126,1755798678011,-480.0,0.00023531,3]
[380517127,1755798678020,-670.29,0.00023531,3]
[380517128,1755798678029,-499.33,0.00023532,3]
[380517129,1755798678038,-480.0,0.00023532,3]
[380517130,1755798678048,-1326.62,0.00023532,3]
[380517131,1755798678061,-480.0,0.00023532,3]
[380517132,1755798678071,-3284.89,0.00023532,3]
[380517133,1755798678080,-2041.53,0.00023532,3]
[380517134,1755798678090,-480.0,0.00023532,3]
[380517135,1755798678100,-924.89,0.00023532,3]
[380517136,1755798678109,-11152.98,0.00023532,3]
[380517137,1755798678119,-9515.28,0.00023532,3]
[380517138,1755798678130,-1197.74,0.00023532,3]
[380517139,1755798678140,-2074.83,0.00023532,3]
[380517140,1755798678150,-370.91977031,0.00023537,2]
[380517141,1755798678159,-255.0,0.00023537,2]
[380517142,1755798678169,-255.0,0.00023537,2]
[380517143,1755798678178,-355.47946405,0.00023537,2]
[380517144,1755798678187,-2336.59,0.00023561,3]
[380517145,1755798678197,-333.14,0.00023561,2]
[380517146,1755798678206,-333.14,0.00023561,2]
[380517147,1755798678216,-333.14,0.00023561,2]
[380517148,1755798678226,-333.14,0.00023561,2]
[380517149,1755798678235,-333.14,0.00023561,2]
[380517150,1755798678246,-333.14,0.00023561,2]
[380517151,1755798678255,-333.14,0.00023561,2]
[380517152,1755798678264,-333.14,0.00023561,2]
[380517153,1755798678274,-333.14,0.00023561,2]
[380517154,1755798678283,-333.14,0.00023561,3]
[380517155,1755798678293,-333.14,0.00023561,3]
[380517156,1755798678303,-333.14,0.00023561,3]
[380517157,1755798678314,-333.14,0.00023561,3]
[380517158,1755798678323,-333.14,0.00023561,3]
[380517159,1755798678332,-333.14,0.00023561,3]
[380517160,1755798678342,-3000.0,0.00023564,2]
[380517161,1755798678351,-2076.27377506,0.00023564,2]
[380517162,1755798678360,-200.0812057,0.0002357,2]
[380517163,1755798678370,-559.0,0.00023587,2]
[380517164,1755798678379,-152.58231,0.00023606,8]
[380517165,1755798678389,-4000.0,0.00023608,2]
[380517166,1755798678399,-4000.0,0.00023608,2]
[380517167,1755798678408,-3500.0,0.00023608,2]
[380517168,1755798678418,-343.59344063,0.00023616,2]
[380517169,1755798678427,-480.0,0.00023631,3]
[380517170,1755798678438,-480.0,0.00023631,3]
[380517171,1755798678447,-723.94,0.00023631,3]
[380517172,1755798678457,-480.0,0.00023631,3]
[380517173,1755798678466,-727.19,0.00023631,3]
[380517174,1755798678476,-480.0,0.00023631,3]
[380517175,1755798678486,-1507.01,0.00023631,3]
[380517176,1755798678495,-151.0,0.00023631,7]
[380517177,1755798678504,-151.0,0.00023631,7]
[380517178,1755798678514,-194.820171,0.00023631,7]
[380517179,1755798678523,-492.61,0.00023631,3]
[380517180,1755798678533,-151.0,0.00023631,7]
[380517181,1755798678542,-524.9,0.00023631,3]
[380517182,1755798678552,-1428.16,0.00023631,3]
[380517183,1755798678562,-872.4,0.00023631,3]
[380517184,1755798678571,-483.84,0.00023631,3]
[380517185,1755798678581,-480.0,0.00023631,3]
[380517186,1755798678590,-480.0,0.00023631,3]
[380517187,1755798678600,-480.0,0.00023631,3]
[380517188,1755798678609,-621.19,0.00023631,3]
[380517189,1755798678619,-618.6,0.00023631,3]
[380517190,1755798678629,-810.8,0.00023631,3]
[380517191,1755798678638,-3280.11,0.00023631,3]
[380517192,1755798678647,-589.21,0.00023631,3]
[380517193,1755798678656,-621.55,0.00023631,3]
[380517194,1755798678665,-1495.64,0.00023631,3]
[380517195,1755798678675,-695.63,0.00023631,3]
[380517196,1755798678684,-654.93,0.00023631,3]
[380517197,1755798678694,-865.47,0.00023631,3]
[380517198,1755798678703,-3867.5,0.00023631,3]
[380517199,1755798678713,-951.02,0.00023631,3]
[380517200,1755798678723,-520.82,0.00023631,3]
[380517201,1755798678732,-1837.57,0.00023631,3]
[380517202,1755798678741,-818.75,0.00023631,3]
[380517203,1755798678750,-480.0,0.00023631,3]
[380517204,1755798678759,-548.67,0.00023631,3]
[380517205,1755798678769,-1521.11,0.00023631,3]
[380517206,1755798678778,-1381.99,0.00023631,3]
[380517207,1755798678788,-866.39,0.00023631,3]
[380517208,1755798678798,-2767.93,0.00023631,3]
[380517209,1755798678809,-321.0511395,0.00023631,3]
[380517210,1755798678818,-556.05,0.00023632,3]
[380517211,1755798678828,-480.0,0.00023632,3]
[380517212,1755798678837,-480.0,0.00023632,3]
[380517213,1755798678847,-494.94,0.00023632,3]
[380517214,1755798678856,-480.0,0.00023632,2]
[380517215,1755798678865,-639.33,0.00023632,3]
[380517216,1755798678875,-480.0,0.00023632,3]
[380517217,1755798678885,-480.0,0.00023632,3]
[380517218,1755798678894,-1760.29,0.00023632,3]
[380517219,1755798678903,-480.0,0.00023632,3]
[380517220,1755798678913,-590.52,0.00023632,3]
[380517221,1755798678923,-480.0,0.00023633,3]
[380517222,1755798678932,-635.25,0.00023633,3]
[380517223,1755798678941,-480.0,0.00023633,3]
[380517224,1755798678951,-799.42,0.00023633,3]
[380517225,1755798678961,-480.0,0.00023633,3]
[380517226,1755798678971,-333.14,0.00023633,3]
[380517227,1755798678980,-480.0,0.00023633,3]
[380517228,1755798678990,-480.0,0.00023633,3]
[380517229,1755798678999,-480.0,0.00023633,3]
[380517230,1755798679009,-8413.69911019,0.00023642,2]
[380517231,1755798679019,-262.5834456,0.00023719,2]
[380517232,1755798679028,-731.99053298,0.00023726,2]
[380517233,1755798679037,-480.0,0.00023732,3]
[380517234,1755798679047,-480.0,0.00023732,3]
[380517235,1755798679060,-578.48,0.00023735,3]
[380517236,1755798679071,-14530.63120795,0.00023738,2]
[380517237,1755798679081,-2625.83445601,0.00023753,2]
[380517238,1755798679090,-262.5834456,0.00023754,2]
[380517239,1755798679101,-2625.83445601,0.00023775,2]
[380517240,1755798679111,-660.0,0.00023788,2]
[380517241,1755798679120,-480.0,0.00023794,3]
[380517242,1755798679130,-674.49,0.00023795,3]
[380517243,1755798679140,-862.49,0.00023795,3]
[380517244,1755798679151,-730.52,0.00023795,3]
[380517245,1755798679160,-2992.55,0.00023795,3]
[380517246,1755798679169,-609.58,0.00023796,3]
[380517247,1755798679179,-1761.08,0.00023796,3]
[380517248,1755798679188,-5081.96,0.00023796,3]
[380517249,1755798679197,-1099.74,0.00023796,3]
[380517250,1755798679207,-754.87,0.00023796,3]
[380517251,1755798679216,-4586.59,0.00023796,3]
[380517252,1755798679226,-4179.87,0.00023796,3]
[380517253,1755798679235,-3124.04,0.00023796,3]
[380517254,1755798679244,-595.07,0.00023796,3]
[380517255,1755798679253,-151.0,0.00023796,7]
[380517256,1755798679262,-151.0,0.00023796,7]
[380517257,1755798679271,-300.498874,0.00023796,7]
[380517258,1755798679280,-2044.44,0.00023796,3]
[380517259,1755798679290,-889.73,0.00023796,3]
[380517260,1755798679299,-151.0,0.00023796,7]
[380517261,1755798679307,-2890.7,0.00023796,3]
[380517262,1755798679317,-480.0,0.00023796,3]
[380517263,1755798679327,-151.0,0.00023796,7]
[380517264,1755798679337,-151.0,0.00023796,7]
[380517265,1755798679346,-876.44,0.00023796,3]
[380517266,1755798679355,-1169.46,0.00023796,3]
[380517267,1755798679364,-1078.29,0.00023796,3]
[380517268,1755798679373,-731.99053298,0.00023798,2]
[380517269,1755798679382,-14530.63120795,0.00023799,2]
[380517270,1755798679391,-1033.16,0.00023805,3]
[380517271,1755798679400,-1678.05,0.00023805,3]
[380517272,1755798679409,-957.28,0.00023805,3]
[380517273,1755798679418,-647.49,0.00023805,3]
[380517274,1755798679427,-1420.27,0.00023805,3]
[380517275,1755798679436,-614.7,0.00023805,3]
[380517276,1755798679445,-1678.64,0.00023805,3]
[380517277,1755798679454,-517.14,0.00023805,3]
[380517278,1755798679463,-767.97,0.00023805,3]
[380517279,1755798679472,-1078.68,0.00023805,3]
[380517280,1755798679481,-1461.11,0.00023805,3]
[380517281,1755798679491,-480.0,0.00023805,3]
[380517282,1755798679500,-480.0,0.00023805,3]
[380517283,1755798679509,-836.24,0.00023805,3]
[380517284,1755798679518,-793.0,0.00023805,3]
[380517285,1755798679528,-1030.12,0.00023805,3]
[380517286,1755798679537,-480.0,0.00023805,3]
[380517287,1755798679547,-670.29,0.00023805,3]
[380517288,1755798679556,-499.33,0.00023806,3]
[380517289,1755798679568,-452.86278847,0.00023806,3]
[380517290,1755798679578,-1326.62,0.00023806,3]
[380517291,1755798679587,-480.0,0.00023806,3]
[380517292,1755798679596,-3284.89,0.00023806,3]
[380517293,1755798679604,-2041.53,0.00023806,3]
[380517294,1755798679613,-480.0,0.00023806,3]
[380517295,1755798679623,-924.89,0.00023806,3]
[380517296,1755798679633,-11152.98,0.00023806,3]
[380517297,1755798679642,-9515.28,0.00023806,3]
[380517298,1755798679651,-1197.74,0.00023806,3]
[380517299,1755798679660,-2074.83,0.00023806,3]
[380517300,1755798679670,-151.0,0.00023806,7]
[380517301,1755798679679,-151.0,0.00023806,7]
[380517302,1755798679688,-151.0,0.00023806,7]
[380517303,1755798679698,-2336.59,0.00023835,3]
[380517304,1755798679707,-559.0,0.00023861,2]
[380517305,1755798679716,-152.58231,0.00023887,2]
[380517306,1755798679725,-151.0,0.00023903,2]
[380517307,1755798679734,-359.46420299,0.00023905,3]
[380517308,1755798679744,-480.0,0.00023905,3]
[380517309,1755798679753,-723.94,0.00023905,3]
[380517310,1755798679762,-480.0,0.00023905,3]
[380517311,1755798679772,-727.19,0.00023905,3]
[380517312,1755798679781,-480.0,0.00023905,3]
[380517313,1755798679789,-1507.01,0.00023905,3]
[380517314,1755798679798,-492.61,0.00023905,3]
[380517315,1755798679807,-524.9,0.00023905,3]
[380517316,1755798679818,-1428.16,0.00023905,3]
[380517317,1755798679827,-872.4,0.00023905,3]
[380517318,1755798679836,-483.84,0.00023905,3]
[380517319,1755798679845,-480.0,0.00023905,3]
[380517320,1755798679855,-480.0,0.00023905,3]
[380517321,1755798679864,-605.41319043,0.00023905,3]
[380517322,1755798679873,-621.19,0.00023905,3]
[380517323,1755798679881,-618.6,0.00023905,3]
[380517324,1755798679891,-810.8,0.00023905,3]
[380517325,1755798679900,-3280.11,0.00023905,3]
[380517326,1755798679909,-589.21,0.00023905,3]
[380517327,1755798679918,-621.55,0.00023905,3]
[380517328,1755798679927,-1495.64,0.00023905,3]
[380517329,1755798679936,-695.63,0.00023905,3]
[380517330,1755798679944,-654.93,0.00023905,3]
[380517331,1755798679953,-865.47,0.00023905,3]
[380517332,1755798679961,-3867.5,0.00023905,3]
[380517333,1755798679970,-951.02,0.00023905,3]
[380517334,1755798679979,-520.82,0.00023905,3]
[380517335,1755798679988,-1837.57,0.00023905,3]
[380517336,1755798679997,-818.75,0.00023905,3]
[380517337,1755798680007,-429.80777813,0.00023905,3]
[380517338,1755798680015,-548.67,0.00023905,3]
[380517339,1755798680024,-1521.11,0.00023905,3]
[380517340,1755798680033,-1381.99,0.00023905,3]
[380517341,1755798680041,-866.39,0.00023905,3]
[380517342,1755798680054,-2767.93,0.00023905,3]
[380517343,1755798680063,-556.05,0.00023906,3]
[380517344,1755798680072,-480.0,0.00023906,3]
[380517345,1755798680081,-480.0,0.00023906,3]
[380517346,1755798680090,-494.94,0.00023906,3]
[380517347,1755798680101,-480.0,0.00023906,2]
[380517348,1755798680110,-639.33,0.00023906,3]
[380517349,1755798680119,-480.0,0.00023906,3]
[380517350,1755798680238,-480.0,0.00023906,3]
[380517351,1755798680247,-1760.29,0.00023906,3]
[380517352,1755798680256,-480.0,0.00023906,3]
[380517353,1755798680264,-590.52,0.00023906,3]
[380517354,1755798680273,-480.0,0.00023907,3]
[380517355,1755798680281,-635.25,0.00023907,3]
[380517356,1755798680290,-480.0,0.00023907,3]
[380517357,1755798680299,-799.42,0.00023907,3]
[380517358,1755798680308,-592.03600917,0.00023907,3]
[380517359,1755798680317,-333.14,0.00023907,3]
[380517360,1755798680326,-480.0,0.00023907,3]
[380517361,1755798680334,-480.0,0.00023907,3]
[380517362,1755798680343,-480.0,0.00023907,3]
[380517363,1755798680352,-560.50669357,0.00023973,2]
[380517364,1755798680361,-3500.0,0.00023974,2]
[380517365,1755798680370,-200.0,0.00023999,30]
[380517366,1755798680379,-200.0,0.00023999,30]
[380517367,1755798680388,-200.0,0.00023999,30]
[380517368,1755798680397,-153.0,0.00024,2]
[380517369,1755798680406,-160.0,0.00024,7]
[380517370,1755798680415,-1500.0,0.00024,2]
[380517371,1755798680424,-1500.0,0.00024,2]
[380517372,1755798680433,-1500.0,0.00024,2]
[380517373,1755798680442,-1500.0,0.00024,2]
[380517374,1755798680451,-1500.0,0.00024,2]
[380517375,1755798680460,-1500.0,0.00024,2]
[380517376,1755798680469,-1500.0,0.00024,2]
[380517377,1755798680478,-1500.0,0.00024,2]
[380517378,1755798680488,-1500.0,0.00024,2]
[380517379,1755798680497,-1867.59,0.00024,2]
[380517380,1755798680506,-1500.0,0.00024,2]
[380517381,1755798680515,-115677.90090849,0.00024,60]
[380517382,1755798680524,-7134.91,0.00024,7]
[380517383,1755798680533,-232.28399145,0.00024,7]
[380517384,1755798680542,-160.0,0.00024,7]
[380517385,1755798680551,-10193.89309559,0.00024,2]
[380517386,1755798680560,-622.3,0.00024,7]
[380517387,1755798680570,-3512.65,0.00024,7]
[380517388,1755798680580,-62628.88,0.00024,2]
[380517389,1755798680590,-222.081693,0.00024,7]
[380517390,1755798680600,-151.0,0.00024,7]
[380517391,1755798680611,-222.081693,0.00024,7]
[380517392,1755798680620,-151.0,0.00024,7]
[380517393,1755798680630,-222.081693,0.00024,7]
[380517394,1755798680639,-151.0,0.00024,7]
[380517395,1755798680649,-222.081697,0.00024,7]
[380517396,1755798680658,-151.0,0.00024,7]
[380517397,1755798680668,-164.0,0.00024,7]
[380517398,1755798680678,-216.95272161,0.00024,7]
[380517399,1755798680689,-151.0,0.00024,7]
[380517400,1755798680698,-202.502448,0.00024,7]
[380517401,1755798680708,-202.502448,0.00024,7]
[380517402,1755798680718,-202.502448,0.00024,7]
[380517403,1755798680727,-202.502447,0.00024,7]
[380517404,1755798680737,-609.335216,0.00024,7]
[380517405,1755798680747,-609.335216,0.00024,7]
[380517406,1755798680756,-609.335216,0.00024,7]
[380517407,1755798680766,-609.335212,0.00024,7]
[380517408,1755798680775,-151.0,0.00024,7]
[380517409,1755798680785,-280.683667,0.00024,7]
[380517410,1755798680794,-151.0,0.00024,7]
[380517411,1755798680804,-160.0,0.00024,7]
[380517412,1755798680813,-844.19128999,0.00024,7]
[380517413,1755798680823,-480.0,0.00024006,3]
[380517414,1755798680832,-480.0,0.00024006,3]
[380517415,1755798680841,-578.48,0.00024009,3]
[380517416,1755798680850,-160.0,0.00024046,6]
[380517417,1755798680860,-480.0,0.00024068,3]
[380517418,1755798680870,-674.49,0.00024069,3]
[380517419,1755798680880,-862.49,0.00024069,3]
[380517420,1755798680889,-730.52,0.00024069,3]
[380517421,1755798680898,-2992.55,0.00024069,3]
[380517422,1755798680907,-609.58,0.0002407,3]
[380517423,1755798680917,-1761.08,0.0002407,3]
[380517424,1755798680926,-5081.96,0.0002407,3]
[380517425,1755798680935,-1099.74,0.0002407,3]
[380517426,1755798680944,-754.87,0.0002407,3]
[380517427,1755798680954,-4586.59,0.0002407,3]
[380517428,1755798680962,-4179.87,0.0002407,3]
[380517429,1755798680971,-3124.04,0.0002407,3]
[380517430,1755798680980,-595.07,0.0002407,3]
[380517431,1755798680989,-2044.44,0.0002407,3]
[380517432,1755798680998,-889.73,0.0002407,3]
[380517433,1755798681008,-2890.7,0.0002407,3]
[380517434,1755798681017,-480.0,0.0002407,3]
[380517435,1755798681026,-876.44,0.0002407,3]
[380517436,1755798681037,-1169.46,0.0002407,3]
[380517437,1755798681047,-1078.29,0.0002407,3]
[380517438,1755798681058,-1033.16,0.00024079,3]
[380517439,1755798681070,-1678.05,0.00024079,3]
[380517440,1755798681080,-957.28,0.00024079,3]
[380517441,1755798681090,-647.49,0.00024079,3]
[380517442,1755798681101,-1420.27,0.00024079,3]
[380517443,1755798681111,-614.7,0.00024079,3]
[380517444,1755798681120,-1678.64,0.00024079,3]
[380517445,1755798681129,-517.14,0.00024079,3]
[380517446,1755798681141,-767.97,0.00024079,3]
[380517447,1755798681150,-1078.68,0.00024079,3]
[380517448,1755798681159,-1461.11,0.00024079,3]
[380517449,1755798681168,-480.0,0.00024079,3]
[380517450,1755798681177,-480.0,0.00024079,3]
[380517451,1755798681186,-836.24,0.00024079,3]
[380517452,1755798681196,-793.0,0.00024079,3]
[380517453,1755798681205,-1030.12,0.00024079,3]
[380517454,1755798681215,-395.57782678,0.00024079,3]
[380517455,1755798681224,-670.29,0.00024079,3]
[380517456,1755798681233,-151.0,0.0002408,7]
[380517457,1755798681242,-224.770708,0.0002408,7]
[380517458,1755798681252,-224.770708,0.0002408,7]
[380517459,1755798681261,-224.770708,0.0002408,7]
[380517460,1755798681271,-224.770701,0.0002408,7]
[380517461,1755798681280,-499.33,0.0002408,3]
[380517462,1755798681290,-1326.62,0.0002408,3]
[380517463,1755798681299,-577.86888167,0.0002408,3]
[380517464,1755798681308,-3284.89,0.0002408,3]
[380517465,1755798681320,-2041.53,0.0002408,3]